fUSD/lending_fUSD_20241017
["ID","MTS","AMOUNT","RATE_DAILY","PERIOD"]
[340380940,1729153846162,-408.20189841,0.00013768,2]
[340380941,1729153846171,-40717.85727946,0.00013769,3]
[340380942,1729153846182,-62737.6696743,0.00013769,3]
[340380943,1729153846193,-90191.59340001,0.00013769,3]
[340380944,1729153846204,-34016.6297,0.00013769,3]
[340380945,1729153846215,-37191.318,0.00013769,3]
[340380946,1729153846225,-127632.70698527,0.00013769,3]
[340380947,1729153846234,-5954.02351749,0.00013769,2]
[340380948,1729153846243,-33154.50310124,0.00013769,2]
[340380949,1729153846255,-46509.59332179,0.00013769,2]
[340380950,1729153846265,-12934.22126184,0.00013769,2]
[340380955,1729153990916,684.02,0.00010954,2]
[340380958,1729154359987,550.0,0.0001,2]
[340380962,1729154545831,649.81,0.00010291,2]
[340380963,1729154731971,156.52,0.00010959,2]
[340380964,1729155032086,-924.0,0.00011462,2]
[340380965,1729155032096,-161.46,0.00011928,2]
[340380966,1729155032106,-600.0,0.00012,2]
[340380967,1729155032115,-335.515038,0.00012065,2]
[340380968,1729155032142,-588.484962,0.00012065,2]
[340380969,1729155032152,-209.0,0.00012109,2]
[340380970,1729155032161,-269.28,0.00012121,2]
[340380971,1729155032170,-250.0,0.00012166,2]
[340380972,1729155032180,-250.0,0.00012167,2]
[340380973,1729155032189,-251.55,0.00012177,2]
[340380974,1729155032199,-16787.14992899,0.00012242,2]
[340380975,1729155032208,-649.81,0.00012555,2]
[340380976,1729155032218,-924.0,0.00012701,2]
[340380977,1729155032227,-251.55,0.00012785,2]
[340380978,1729155032236,-310.41,0.00012797,2]
[340380979,1729155032246,-310.41,0.00012801,2]
[340380980,1729155032255,-310.41,0.00012804,2]
[340380981,1729155032265,-310.41,0.00012807,2]
[340380982,1729155032274,-310.41,0.00012811,2]
[340380983,1729155032283,-310.41,0.00012814,2]
[340380984,1729155032293,-310.41,0.00012818,2]
[340380985,1729155032303,-310.41,0.00012821,2]
[340380986,1729155032312,-323.4,0.00012822,2]
[340380987,1729155032323,-310.41,0.00012824,2]
[340380988,1729155032333,-310.41,0.00012828,2]
[340380989,1729155032342,-150.0,0.00012831,2]
[340380990,1729155032352,-310.41,0.00012831,2]
[340380991,1729155032364,-310.41,0.00012834,2]
[340380992,1729155032374,-310.41,0.00012838,2]
[340380993,1729155032383,-310.41,0.00012841,2]
[340380995,1729155032392,-310.41,0.00012845,2]
[340380997,1729155032402,-310.41,0.00012848,2]
[340380998,1729155032411,-310.41,0.00012851,2]
[340380999,1729155032421,-310.41,0.00012855,2]
[340381000,1729155032430,-1000.0,0.00012855,2]
[340381001,1729155032439,-310.41,0.00012858,2]
[340381002,1729155032448,-7.19076698,0.00012861,2]
[340381003,1729155032460,-303.21923302,0.00012861,2]
[340381004,1729155032470,-16.09076698,0.00013233,2]
[340381005,1729155032481,-150.90923302,0.00013233,2]
[340381006,1729155032491,-924.0,0.00013336,2]
[340381007,1729155032500,-251.55,0.00013394,2]
[340381008,1729155032509,-209.0,0.00013622,2]
[340381009,1729155032518,-281.34503982,0.00013673,2]
[340381012,1729155038160,-41390.64372682,0.00013673,2]
[340381020,1729155042947,-7139.5675753,0.00013673,2]
[340381023,1729155092688,602.9,0.00010922,2]
[340381028,1729155351025,50000.0,0.00027,60]
[340381029,1729155367578,50000.0,0.000215,40]
[340381030,1729155379668,50000.0,0.00021,30]
[340381031,1729155626220,572.75,0.0001084,2]
[340381032,1729155747314,26000.0,0.00013672,3]
[340381034,1729156002598,159.62,0.00010959,2]
[340381035,1729156135888,544.11,0.00010784,2]
[340381036,1729156184384,550.0,0.0001,2]
[340381039,1729156232047,-600.0,0.00012,2]
[340381040,1729156232057,-250.0,0.00012638,2]
[340381041,1729156232066,-1561.89,0.00012641,2]
[340381042,1729156232076,-1000.0,0.00012657,2]
[340381043,1729156232086,-269.28,0.00012657,2]
[340381044,1729156232096,-6036.69158737,0.00012657,2]
[340381045,1729156232105,-250.0,0.0001268,2]
[340381046,1729156232115,-474.44480028,0.00012701,2]
[340381047,1729156232124,-159.82,0.00012702,2]
[340381048,1729156232134,-167.7,0.00012713,2]
[340381049,1729156232143,-544.11,0.00013048,2]
[340381050,1729156232153,-167.0,0.00013093,2]
[340381051,1729156232163,-4410.78171362,0.00013567,2]
[340381052,1729156232173,-27478.6812,0.00013572,2]
[340381053,1729156232182,-1000.0,0.00013573,2]
[340381054,1729156232191,-17803.6266,0.00013573,2]
[340381055,1729156232200,-500.0,0.00013573,2]
[340381056,1729156232209,-4460.5792774,0.00013573,2]
[340381057,1729156232234,-765.51049624,0.00013573,2]
[340381058,1729156232254,-132.53139211,0.00013573,2]
[340381059,1729156232263,-885.03326535,0.000136,2]
[340381060,1729156232275,-4512.3703907,0.000136,2]
[340381061,1729156232291,-2102.59634395,0.000136,2]
[340381062,1729156232301,-165.49141952,0.0001361,2]
[340381063,1729156232311,-636.16920433,0.00013671,2]
[340381064,1729156232322,-243.60691642,0.00013671,2]
[340381065,1729156232333,-500.0,0.00013673,2]
[340381067,1729156232342,-500.0,0.00013673,2]
[340381069,1729156232352,-160.93472842,0.00013673,2]
[340381071,1729156232362,-39071.45835516,0.00013673,2]
[340381084,1729156238142,-500.0,0.00013573,2]
[340381085,1729156238153,-1181.33826252,0.00013673,2]
[340381086,1729156238197,-1094.64756794,0.00013673,2]
[340381087,1729156238308,-4686.31451728,0.00013673,2]
[340381266,1729156240635,-504.72452161,0.00013673,2]
[340381331,1729156246157,-1845.71611579,0.00013673,2]
[340381332,1729156246266,-34240.73082548,0.00013673,2]
[340381333,1729156246376,-6619.69609493,0.00013673,2]
[340381334,1729156676872,543.65,0.00010589,2]
[340381640,1729156882492,60708.33884544,0.00027,60]
[340383711,1729156961423,50000.0,0.00021,30]
[340383991,1729156971952,50000.0,0.000215,40]
[340384309,1729156983746,50000.0,0.00027,60]
[340385913,1729157053395,155.65,0.00010959,2]
[340386787,1729157107996,512105.10591989,0.00011,2]
[340387778,1729157231756,516.46,0.00010086,2]
[340387779,1729157232142,-150.0,0.00011859,2]
[340387780,1729157232164,-337.5381032,0.00012052,2]
[340387825,1729157432291,-150.0,0.00011799,2]
[340387826,1729157432519,-250.0,0.00011894,2]
[340387827,1729157432528,-165.46,0.00011894,2]
[340387828,1729157432537,-1500.0,0.00011896,2]
[340387829,1729157432547,-389.76,0.00012002,2]
[340387830,1729157432557,-800.0,0.00012004,2]
[340387831,1729157432566,-307.3018968,0.00012052,2]
[340387832,1729157432576,-924.0,0.00012065,2]
[340387833,1729157432585,-250.0,0.00012111,2]
[340387834,1729157432594,-250.0,0.00012157,2]
[340387836,1729157432604,-632.75,0.00012224,2]
[340387837,1729157432614,-168.52,0.00012224,2]
[340387838,1729157432623,-916.46856592,0.00012224,2]
[340387839,1729157432640,-6259.67143408,0.00012224,2]
[340387840,1729157432649,-156.75,0.0001224,2]
[340387842,1729157432659,-7288.68,0.0001227,2]
[340387844,1729157432668,-150.0,0.00012344,2]
[340387846,1729157432677,-1238.1,0.00012345,2]
[340387848,1729157432686,-150.99,0.00012345,2]
[340387849,1729157432695,-150.99,0.00012345,2]
[340387851,1729157432704,-13074.36,0.00012345,2]
[340387853,1729157432715,-516.46,0.0001235,2]
[340387855,1729157432729,-200.0,0.00012449,2]
[340387857,1729157432739,-161.46,0.00012552,2]
[340387859,1729157432748,-16790.14933971,0.00012577,2]
[340387861,1729157432757,-821.17,0.00012596,2]
[340387863,1729157432767,-1105.77,0.00012633,2]
[340387865,1729157432776,-167.0,0.00012654,2]
[340387867,1729157432785,-637.97401142,0.00012701,2]
[340387871,1729157432817,-54.17090039,0.00012701,2]
[340387905,1729157438325,-231.85508819,0.00012701,2]
[340387907,1729157438335,-258.72,0.00012743,2]
[340387909,1729157438345,-168.458535,0.00012958,2]
[340387910,1729157438354,-165.46,0.00013084,2]
[340387911,1729157438364,-167.0,0.00013108,2]
[340387912,1729157438374,-554.0,0.00013336,2]
[340387913,1729157438383,-499.99,0.00013336,2]
[340387914,1729157438392,-2084.17643093,0.00013379,2]
[340387915,1729157438408,-1324.92727466,0.00013379,2]
[340387917,1729157440391,-167.0,0.00013041,2]
[340387918,1729157440401,-1442.69301476,0.00013379,2]
[340387919,1729157440410,-2006.6437,0.00013473,2]
[340387920,1729157440419,-825.1967,0.00013473,2]
[340387921,1729157440428,-4822.75904922,0.00013473,2]
[340387922,1729157440438,-166.71242621,0.00013491,2]
[340387923,1729157440447,-5528.30668387,0.00013496,2]
[340387924,1729157440456,-800.0,0.00013505,2]
[340387925,1729157440469,-503.00608732,0.00013573,2]
[340387926,1729157440479,-151.12893356,0.00013573,2]
[340387927,1729157440487,-3309.5492,0.00013573,2]
[340387928,1729157440497,-17803.6266,0.00013573,2]
[340387929,1729157440506,-31287.5881,0.00013573,2]
[340387930,1729157440517,-1000.0,0.00013573,2]
[340387931,1729157440527,-82895.7394,0.00013573,2]
[340387932,1729157440536,-500.0,0.00013573,2]
[340387933,1729157440547,-12858.752,0.00013573,2]
[340387934,1729157440557,-713.7868,0.00013573,2]
[340387935,1729157440566,-151.0,0.00013573,2]
[340387936,1729157440575,-151.0,0.00013573,2]
[340387937,1729157440584,-151.0,0.00013582,2]
[340387938,1729157440593,-151.0,0.00013582,2]
[340387940,1729157440602,-578.383713,0.00013582,2]
[340387942,1729157440611,-578.383713,0.00013582,2]
[340387944,1729157440621,-151.0,0.00013582,2]
[340387945,1729157440630,-151.0,0.00013582,2]
[340387946,1729157440639,-151.0,0.00013582,2]
[340387947,1729157440647,-151.0,0.00013582,2]
[340387948,1729157440656,-4424.342122,0.00013582,2]
[340387949,1729157440666,-93842.49082526,0.00013582,2]
[340387950,1729157440675,-1851.889454,0.000136,2]
[340387951,1729157440685,-400.0,0.000136,4]
[340387952,1729157440695,-4389.8204,0.0001361,2]
[340387953,1729157440704,-151.0,0.00013673,2]
[340387954,1729157440715,-673.193,0.00013673,2]
[340387955,1729157440724,-172.901,0.00013673,2]
[340387956,1729157440735,-200.0,0.00013699,2]
[340387957,1729157440745,-151.0,0.000137,2]
[340387958,1729157440755,-151.0,0.000137,2]
[340387959,1729157440764,-151.0,0.000137,2]
[340387960,1729157440773,-7500.0,0.000137,2]
[340387961,1729157440782,-151.0,0.000137,2]
[340387962,1729157440791,-151.0,0.000137,2]
[340387963,1729157440800,-220.46935,0.000137,2]
[340387964,1729157440810,-152.412709,0.000137,2]
[340387965,1729157440819,-900.0,0.000137,5]
[340387966,1729157440828,-621.996883,0.000137,2]
[340387967,1729157440837,-621.996883,0.000137,2]
[340387968,1729157440846,-164.798952,0.0001371,2]
[340387969,1729157440857,-152.047823,0.0001371,2]
[340387970,1729157440869,-151.0,0.0001371,2]
[340387971,1729157440879,-152.317848,0.0001371,2]
[340387972,1729157440888,-685.806237,0.0001371,2]
[340387973,1729157440897,-685.806237,0.0001371,2]
[340387974,1729157440906,-272.13459894,0.0001376,2]
[340387975,1729157440916,-3027.7353337,0.00013763,2]
[340387976,1729157440925,-38122.0859812,0.00013763,2]
[340387977,1729157440934,-1149.0474502,0.00013763,2]
[340387978,1729157440944,-150.01,0.00013768,2]
[340387979,1729157440954,-414.69941254,0.00013768,2]
[340387980,1729157440965,-320.26644946,0.00013773,2]
[340387981,1729157440974,-500.0,0.00013773,2]
[340387982,1729157440983,-500.0,0.00013773,2]
[340387983,1729157440992,-151.0,0.00013773,2]
[340387984,1729157441002,-4424.342122,0.00013773,2]
[340387985,1729157441011,-167.0,0.00013779,2]
[340387986,1729157441020,-151.0,0.0001378,2]
[340387987,1729157441030,-193.744404,0.0001378,2]
[340387988,1729157441039,-193.744404,0.0001378,2]
[340387989,1729157441048,-193.744404,0.0001378,2]
[340387990,1729157441058,-193.744404,0.0001378,2]
[340387991,1729157441068,-151.0,0.0001378,2]
[340387992,1729157441078,-151.0,0.0001378,2]
[340387993,1729157441087,-151.0,0.0001378,2]
[340387994,1729157441097,-151.0,0.0001378,2]
[340387995,1729157441106,-151.0,0.0001378,2]
[340387996,1729157441116,-151.0,0.0001378,2]
[340387997,1729157441126,-151.0,0.0001378,2]
[340387998,1729157441135,-151.0,0.0001378,2]
[340387999,1729157441144,-151.0,0.0001378,2]
[340388000,1729157441154,-151.0,0.0001378,2]
[340388001,1729157441163,-621.996883,0.0001378,2]
[340388002,1729157441173,-621.996883,0.0001378,2]
[340388003,1729157441183,-578.383713,0.0001378,2]
[340388004,1729157441193,-578.383713,0.0001378,2]
[340388005,1729157441202,-272.13459892,0.0001378,2]
[340388006,1729157441211,-151.0,0.0001378,2]
[340388007,1729157441221,-151.0,0.0001378,2]
[340388008,1729157441231,-151.0,0.0001378,2]
[340388009,1729157441240,-151.0,0.0001378,2]
[340388010,1729157441249,-151.0,0.0001379,2]
[340388011,1729157441259,-151.0,0.0001379,2]
[340388012,1729157441268,-152.573496,0.0001379,2]
[340388013,1729157441278,-151.0,0.00013799,2]
[340388014,1729157441288,-151.0,0.00013799,2]
[340388015,1729157441297,-173.456013,0.00013799,2]
[340388016,1729157441307,-151.0,0.00013799,2]
[340388017,1729157441316,-151.0,0.00013799,2]
[340388018,1729157441325,-151.0,0.00013799,2]
[340388019,1729157441335,-151.0,0.00013799,2]
[340388020,1729157441344,-151.0,0.00013799,2]
[340388021,1729157441354,-151.0,0.00013799,2]
[340388022,1729157441363,-685.806237,0.00013799,2]
[340388023,1729157441373,-685.806237,0.00013799,2]
[340388024,1729157441382,-151.0,0.000138,2]
[340388025,1729157441392,-151.0,0.000138,2]
[340388026,1729157441401,-193.744404,0.000138,2]
[340388027,1729157441410,-193.744404,0.000138,2]
[340388028,1729157441419,-159.50995718,0.000138,2]
[340388029,1729157441428,-186.62351392,0.000138,2]
[340388030,1729157441438,-151.0,0.000138,2]
[340388031,1729157441447,-151.0,0.000138,2]
[340388032,1729157441457,-278.798825,0.000138,2]
[340388033,1729157441469,-151.0,0.000138,2]
[340388034,1729157441480,-151.0,0.000138,2]
[340388035,1729157441490,-151.0,0.000138,2]
[340388036,1729157441499,-151.0,0.000138,2]
[340388037,1729157441509,-151.0,0.000138,2]
[340388038,1729157441519,-151.0,0.000138,2]
[340388039,1729157441528,-151.0,0.000138,2]
[340388040,1729157441537,-207.884238,0.000138,2]
[340388041,1729157441548,-151.0,0.000138,2]
[340388042,1729157441557,-685.806237,0.000138,2]
[340388043,1729157441566,-685.806237,0.000138,2]
[340388044,1729157441575,-151.0,0.000138,2]
[340388045,1729157441584,-151.0,0.000138,2]
[340388046,1729157441594,-151.0,0.000138,2]
[340388047,1729157441603,-151.0,0.000138,2]
[340388048,1729157441612,-151.0,0.000138,2]
[340388049,1729157441621,-151.0,0.000138,2]
[340388050,1729157441630,-151.0,0.000138,2]
[340388051,1729157441639,-151.0,0.000138,2]
[340388052,1729157441649,-1400.0,0.000138,5]
[340388053,1729157441658,-151.0,0.000138,2]
[340388054,1729157441666,-151.0,0.000138,2]
[340388055,1729157441675,-53365.7167277,0.000138,2]
[340388056,1729157441684,-621.996883,0.000138,2]
[340388057,1729157441694,-621.996883,0.000138,2]
[340388058,1729157441703,-578.383713,0.000138,2]
[340388059,1729157441712,-621.996883,0.000138,2]
[340388060,1729157441724,-621.996883,0.000138,2]
[340388061,1729157441733,-578.383713,0.000138,2]
[340388062,1729157441742,-272.13459892,0.000138,2]
[340388063,1729157441751,-151.0,0.000138,2]
[340388064,1729157441760,-151.0,0.000138,2]
[340388065,1729157441769,-151.0,0.000138,2]
[340388066,1729157441779,-151.0,0.000138,2]
[340388067,1729157441788,-708.04909708,0.000138,2]
[340388068,1729157441797,-193.744404,0.00013802,2]
[340388069,1729157441806,-193.744404,0.00013802,2]
[340388070,1729157441816,-151.0,0.00013802,2]
[340388071,1729157441825,-151.0,0.00013802,2]
[340388072,1729157441835,-151.0,0.00013802,2]
[340388073,1729157441844,-162.110802,0.00013802,2]
[340388074,1729157441853,-151.0,0.00013802,2]
[340388075,1729157441863,-151.0,0.00013802,2]
[340388076,1729157441872,-151.0,0.00013802,2]
[340388077,1729157441882,-151.0,0.00013802,2]
[340388078,1729157441892,-151.0,0.00013802,2]
[340388079,1729157441901,-151.0,0.00013802,2]
[340388080,1729157441920,-685.806237,0.00013802,2]
[340388081,1729157441931,-685.806237,0.00013802,2]
[340388082,1729157441941,-151.0,0.00013802,2]
[340388083,1729157441951,-151.0,0.00013802,2]
[340388084,1729157441960,-151.0,0.00013802,2]
[340388085,1729157441976,-225.745823,0.00013802,2]
[340388086,1729157441985,-621.996883,0.00013802,2]
[340388087,1729157441995,-621.996883,0.00013802,2]
[340388088,1729157442004,-1586.35771796,0.0001384,2]
[340388089,1729157442014,-142308.577941,0.0001385,2]
[340388090,1729157442023,-151.0,0.00013859,2]
[340388091,1729157442033,-151.0,0.00013859,2]
[340388092,1729157442042,-151.0,0.00013859,2]
[340388093,1729157442051,-578.383713,0.00013859,2]
[340388094,1729157442060,-578.383713,0.00013859,2]
[340388095,1729157442070,-151.0,0.00013859,2]
[340388096,1729157442079,-151.0,0.00013859,2]
[340388097,1729157442089,-151.0,0.00013859,2]
[340388098,1729157442099,-151.0,0.0001386,2]
[340388099,1729157442109,-578.383713,0.0001386,2]
[340388100,1729157442118,-578.383713,0.0001386,2]
[340388101,1729157442127,-151.0,0.0001386,2]
[340388102,1729157442137,-151.0,0.0001386,2]
[340388103,1729157442146,-262.696613,0.0001386,2]
[340388104,1729157442156,-17788.5722426,0.0001386,2]
[340388105,1729157442166,-151.0,0.0001387,2]
[340388106,1729157442175,-151.0,0.0001387,2]
[340388107,1729157442185,-151.0,0.0001387,2]
[340388108,1729157442196,-151.0,0.0001387,2]
[340388109,1729157442205,-151.0,0.0001387,2]
[340388110,1729157442216,-151.0,0.0001387,2]
[340388111,1729157442226,-151.0,0.0001387,2]
[340388112,1729157442236,-685.806237,0.0001387,2]
[340388113,1729157442245,-685.806237,0.0001387,2]
[340388114,1729157442255,-151.0,0.0001387,2]
[340388115,1729157442264,-151.0,0.0001387,2]
[340388116,1729157442273,-151.0,0.0001387,2]
[340388117,1729157442283,-621.996883,0.0001387,2]
[340388118,1729157442292,-621.996883,0.0001387,2]
[340388119,1729157442302,-150.91021515,0.00013873,2]
[340388120,1729157442311,-346.62011943,0.00013873,2]
[340388121,1729157442321,-500.0,0.00013873,2]
[340388122,1729157442330,-500.0,0.00013873,2]
[340388123,1729157442340,-151.0,0.00013873,2]
[340388124,1729157442349,-578.383713,0.00013873,2]
[340388125,1729157442358,-578.383713,0.00013873,2]
[340388126,1729157442368,-151.0,0.00013873,2]
[340388127,1729157442377,-151.0,0.00013873,2]
[340388128,1729157442387,-151.0,0.00013879,2]
[340388129,1729157442396,-193.744404,0.00013879,2]
[340388130,1729157442405,-193.744404,0.00013879,2]
[340388131,1729157442415,-151.0,0.00013879,2]
[340388132,1729157442425,-151.0,0.00013879,2]
[340388133,1729157442434,-151.0,0.00013879,2]
[340388134,1729157442443,-4226.68477917,0.0001388,2]
[340388135,1729157442452,-150.0,0.00013889,2]
[340388136,1729157442462,-151.0,0.0001389,2]
[340388137,1729157442474,-685.806237,0.0001389,2]
[340388138,1729157442484,-685.806237,0.0001389,2]
[340388139,1729157442493,-151.0,0.0001389,2]
[340388140,1729157442502,-151.0,0.0001389,2]
[340388141,1729157442511,-151.0,0.0001389,2]
[340388142,1729157442522,-106731.433455,0.0001389,2]
[340388143,1729157442531,-180.312304,0.0001389,2]
[340388144,1729157442540,-621.996883,0.0001389,2]
[340388145,1729157442551,-578.383713,0.0001389,2]
[340388146,1729157442560,-621.996883,0.0001389,2]
[340388147,1729157442569,-578.383713,0.0001389,2]
[340388148,1729157442579,-151.0,0.0001389,2]
[340388149,1729157442588,-151.0,0.0001389,2]
[340388150,1729157442597,-500.0,0.00013899,2]
[340388151,1729157442606,-500.0,0.00013899,2]
[340388152,1729157442615,-497.35505221,0.00013899,2]
[340388153,1729157442625,-690.0,0.000139,2]
[340388154,1729157442634,-285964.07066637,0.000139,3]
[340388155,1729157442643,-193.744404,0.000139,2]
[340388156,1729157442653,-193.744404,0.000139,2]
[340388157,1729157442906,-193.744404,0.000139,2]
[340388158,1729157442916,-193.744404,0.000139,2]
[340388159,1729157442926,-151.0,0.000139,2]
[340388160,1729157442936,-151.0,0.000139,2]
[340388161,1729157442946,-151.0,0.000139,2]
[340388162,1729157442956,-193.009481,0.000139,2]
[340388163,1729157442966,-151.0,0.000139,2]
[340388164,1729157442976,-264.437773,0.000139,2]
[340388165,1729157442985,-151.0,0.000139,2]
[340388166,1729157442995,-151.0,0.000139,2]
[340388167,1729157443004,-151.0,0.000139,2]
[340388169,1729157443015,-151.0,0.000139,2]
[340388170,1729157443024,-685.806237,0.000139,2]
[340388171,1729157443035,-685.806237,0.000139,2]
[340388172,1729157443046,-151.0,0.000139,2]
[340388173,1729157443057,-163.275829,0.000139,2]
[340388174,1729157443066,-151.0,0.000139,2]
[340388175,1729157443076,-1800.0,0.000139,5]
[340388176,1729157443085,-177015.6447,0.000139,2]
[340388177,1729157443095,-621.996883,0.000139,2]
[340388178,1729157443105,-578.383713,0.000139,2]
[340388179,1729157443114,-621.996883,0.000139,2]
[340388180,1729157443124,-578.383713,0.000139,2]
[340388181,1729157443134,-151.0,0.000139,2]
[340388182,1729157443143,-500.0,0.00013919,2]
[340388183,1729157443152,-500.0,0.00013919,2]
[340388184,1729157443163,-500.0,0.00013919,2]
[340388185,1729157443173,-500.0,0.00013919,2]
[340388186,1729157443183,-500.0,0.00013919,2]
[340388188,1729157443194,-404.0401,0.00013919,2]
[340388190,1729157443204,-372.197,0.00013919,2]
[340388192,1729157443214,-13616.5880538,0.00013926,2]
[340388194,1729157443224,-17788.5722426,0.00013936,2]
[340388196,1729157443234,-151.0,0.00013946,2]
[340388198,1729157443244,-151.0,0.00013946,2]
[340388199,1729157443254,-151.0,0.00013946,2]
[340388200,1729157443263,-151.0,0.00013946,2]
[340388201,1729157443273,-151.0,0.00013946,2]
[340388202,1729157443282,-151.0,0.00013946,2]
[340388203,1729157443292,-13616.5880538,0.0001395,2]
[340388204,1729157443301,-685.806237,0.0001396,2]
[340388205,1729157443310,-685.806237,0.0001396,2]
[340388206,1729157443320,-685.806237,0.0001396,2]
[340388207,1729157443329,-685.806237,0.0001396,2]
[340388208,1729157443339,-151.0,0.0001396,2]
[340388209,1729157443348,-151.0,0.0001396,2]
[340388210,1729157443357,-151.0,0.0001396,2]
[340388211,1729157443366,-243.81332,0.0001396,2]
[340388212,1729157443375,-621.996883,0.0001396,2]
[340388213,1729157443384,-621.996883,0.0001396,2]
[340388214,1729157443394,-578.383713,0.0001396,2]
[340388215,1729157443403,-578.383713,0.0001396,2]
[340388216,1729157443412,-621.996883,0.0001396,2]
[340388217,1729157443421,-621.996892,0.0001396,2]
[340388218,1729157443430,-578.383713,0.0001396,2]
[340388219,1729157443440,-578.383706,0.0001396,2]
[340388220,1729157443449,-151.0,0.0001396,2]
[340388221,1729157443459,-151.0,0.0001396,2]
[340388222,1729157443469,-54466.3522153,0.0001396,2]
[340388223,1729157443482,-151.0,0.0001397,2]
[340388224,1729157443492,-151.0,0.0001397,2]
[340388225,1729157443501,-151.0,0.0001397,2]
[340388226,1729157443512,-151.0,0.0001397,2]
[340388227,1729157443521,-188.904005,0.0001397,2]
[340388228,1729157443531,-685.806237,0.0001397,2]
[340388229,1729157443540,-685.806228,0.0001397,2]
[340388230,1729157443549,-2813.5906021,0.0001397,2]
[340388231,1729157443560,-68082.9402691,0.0001397,2]
[340388232,1729157443569,-35555.2495864,0.0001397,2]
[340388233,1729157443578,-1071.6797842,0.0001397,2]
[340388234,1729157443588,-215.27393193,0.00013973,2]
[340388235,1729157443597,-412.88105479,0.00013973,2]
[340388236,1729157443606,-151.28029161,0.00013973,2]
[340388237,1729157443614,-500.0,0.00013973,2]
[340388238,1729157443623,-501.22946799,0.00013973,2]
[340388239,1729157443633,-250000.0,0.0001398,2]
[340388240,1729157443643,-193.744404,0.0001398,2]
[340388241,1729157443652,-193.744404,0.0001398,2]
[340388242,1729157443661,-151.0,0.0001398,2]
[340388243,1729157443671,-151.0,0.0001398,2]
[340388244,1729157443681,-151.0,0.0001398,2]
[340388245,1729157443690,-151.0,0.0001398,2]
[340388246,1729157443700,-219.525227,0.0001398,2]
[340388247,1729157443711,-151.0,0.0001398,2]
[340388248,1729157443721,-151.0,0.0001399,2]
[340388249,1729157443731,-151.0,0.0001399,2]
[340388250,1729157443742,-151.0,0.0001399,2]
[340388251,1729157443753,-151.0,0.0001399,2]
[340388252,1729157443763,-151.0,0.0001399,2]
[340388253,1729157443773,-2351.9653666,0.0001399,2]
[340388254,1729157443782,-4371.2428507,0.0001399,2]
[340388255,1729157443792,-160.21210207,0.00014,2]
[340388256,1729157443801,-500.0,0.00014,2]
[340388257,1729157443811,-500.0,0.00014,2]
[340388258,1729157443821,-500.0,0.00014,2]
[340388259,1729157443830,-500.0,0.00014,2]
[340388260,1729157443840,-500.0,0.00014,2]
[340388261,1729157443849,-500.0,0.00014,2]
[340388262,1729157443857,-500.0,0.00014,2]
[340388263,1729157443866,-500.0,0.00014,2]
[340388264,1729157443875,-500.0,0.00014,2]
[340388265,1729157443883,-500.0,0.00014,2]
[340388266,1729157443892,-500.0,0.00014,2]
[340388267,1729157443901,-500.0,0.00014,2]
[340388269,1729157443910,-500.0,0.00014,2]
[340388271,1729157443919,-500.0,0.00014,2]